fUSD/lending_fUSD_20240826
["ID","MTS","AMOUNT","RATE_DAILY","PERIOD"]
[336008816,1724665818411,1000.0,9.896e-05,2]
[336008820,1724665832203,-440.37274966,0.00010026,2]
[336008822,1724665832213,-182.62,0.00010049,2]
[336008824,1724665832226,-164.59258678,0.00010097,2]
[336008826,1724665832236,-300.0,0.00010449,2]
[336008828,1724665832246,-300.0,0.00010449,2]
[336008830,1724665832256,-1931.3328586,0.00010449,2]
[336008832,1724665832266,-6365.16031906,0.0001045,2]
[336008840,1724665832334,-3634.83968094,0.0001045,2]
[336008842,1724665832344,-495.63,0.00010471,2]
[336008844,1724665832353,-6203.08818947,0.00010471,2]
[336008845,1724665832362,-500.0,0.00010534,2]
[336008847,1724665832371,-1858.93625332,0.00010713,2]
[336008849,1724665832381,-150.0,0.00010767,2]
[336008851,1724665832390,-1997.2,0.00010767,2]
[336008853,1724665832400,-183.49693513,0.0001079,2]
[336008855,1724665832409,-1134.91858891,0.00010799,2]
[336008856,1724665832419,-3607.5151,0.000108,2]
[336008857,1724665832428,-150.0,0.000108,2]
[336008858,1724665832437,-236.7166,0.000108,2]
[336008859,1724665832446,-150.0,0.00010813,2]
[336008860,1724665832455,-3764.61,0.00010814,2]
[336008861,1724665832465,-3725.67,0.00010849,2]
[336008862,1724665832475,-3736.17,0.00010849,2]
[336008863,1724665832485,-3771.32,0.00010849,2]
[336008864,1724665832494,-3772.69,0.00010849,2]
[336008865,1724665832503,-3784.04,0.00010849,2]
[336008866,1724665832514,-3847.45,0.00010862,2]
[336008867,1724665832523,-418.17640203,0.00010862,2]
[336008868,1724665832534,-656.29306752,0.00010862,2]
[336008869,1724665832543,-613.89514581,0.00010862,2]
[336008870,1724665832553,-547.48970731,0.00010862,2]
[336008871,1724665832563,-746.78869773,0.00010888,2]
[336008872,1724665832572,-155.0,0.00010888,2]
[336008873,1724665832582,-211.25763807,0.00010888,2]
[336008874,1724665832592,-203.13728804,0.00010888,2]
[336008875,1724665832602,-155.0,0.00010888,2]
[336008877,1724665832611,-304.12480458,0.00010888,2]
[336008879,1724665832620,-12800.40290114,0.0001089,2]
[336008881,1724665832633,-5202.01401295,0.0001089,2]
[336008883,1724665832646,-5734.74434903,0.0001089,2]
[336008885,1724665832655,-153.29437,0.0001089,2]
[336008887,1724665832665,-529.51623645,0.0001089,2]
[336008889,1724665832675,-507.61773081,0.0001089,2]
[336008891,1724665832684,-995.48328955,0.0001089,2]
[336008893,1724665832694,-155.52427581,0.0001089,2]
[336008894,1724665832703,-1321.45533728,0.00010899,2]
[336008895,1724665832712,-218.99354596,0.00010899,2]
[336008896,1724665832723,-401.85092769,0.00010899,2]
[336008897,1724665832732,-289.41545164,0.00010899,2]
[336008898,1724665832742,-278.709,0.000109,2]
[336008899,1724665832751,-528.98830108,0.000109,2]
[336008900,1724665832803,-1269.60834,0.00010471,2]
[336008901,1724665832826,-1119.20736417,0.00010471,2]
[336008902,1724665832835,-6971.01169892,0.000109,2]
[336008903,1724665832845,-105582.1535,0.000109,2]
[336008904,1724665832854,-1054.31149976,0.000109,2]
[336008905,1724665832864,-171.05952411,0.000109,2]
[336008906,1724665832873,-984.9221381,0.000109,2]
[336008907,1724665832883,-500.0,0.00010912,2]
[336008908,1724665832893,-3775.21,0.00010913,2]
[336008909,1724665832903,-277.63574042,0.00010949,2]
[336008910,1724665832912,-150.85,0.00010949,2]
[336008911,1724665832923,-150.0,0.00010959,2]
[336008912,1724665832933,-1500.0,0.00010959,2]
[336008913,1724665832943,-158.26,0.00010959,2]
[336008914,1724665832953,-556.16,0.00010959,2]
[336008915,1724665832962,-463.47,0.00010959,2]
[336008916,1724665832973,-386.22,0.00010959,2]
[336008917,1724665832983,-5575.04,0.00010959,2]
[336008918,1724665832996,-321.85,0.00010959,2]
[336008919,1724665833006,-268.21,0.00010959,2]
[336008920,1724665833015,-159.99075571,0.00010973,2]
[336008921,1724665833025,-154.99104461,0.00010973,2]
[336008922,1724665833034,-154.99046118,0.00010973,2]
[336008923,1724665833044,-151.99121793,0.00010973,2]
[336008924,1724665833054,-179.36963601,0.00010973,2]
[336008925,1724665833064,-199.98844464,0.00010973,2]
[336008926,1724665833079,-500.0,0.00010973,2]
[336008927,1724665833089,-158.99046876,0.00010973,2]
[336008928,1724665833099,-159.99075571,0.00010973,2]
[336008929,1724665833109,-3801.05,0.00010978,2]
[336008930,1724665833119,-161.571,0.00010984,2]
[336008931,1724665833129,-485.85120048,0.00010999,2]
[336008932,1724665833138,-242.18939926,0.00010999,2]
[336008933,1724665833148,-2259.0,0.00010999,2]
[336008934,1724665833158,-500.0,0.00010999,2]
[336008935,1724665833168,-422.89402082,0.00010999,2]
[336008936,1724665833177,-839.96272062,0.00010999,2]
[336008937,1724665833187,-500.0,0.00010999,2]
[336008938,1724665833197,-500.0,0.00010999,2]
[336008939,1724665833207,-500.0,0.00010999,2]
[336008940,1724665833218,-500.0,0.00010999,2]
[336008941,1724665833227,-1259.0,0.00011,2]
[336008942,1724665833237,-623.0,0.00011,2]
[336008943,1724665833247,-1138.0,0.00011,2]
[336008944,1724665833257,-599.971,0.00011,2]
[336008945,1724665833266,-447.0,0.00011,2]
[336008946,1724665833276,-811.0,0.00011,2]
[336008947,1724665833286,-168.712,0.00011,2]
[336008948,1724665833297,-552.808,0.00011,2]
[336008949,1724665833307,-1897.0,0.00011,2]
[336008950,1724665833316,-1179.0,0.00011,2]
[336008951,1724665833415,-352.348,0.00011,2]
[336008952,1724665833445,-3321.0,0.00011,2]
[336008953,1724665833454,-764.0,0.00011,2]
[336008954,1724665833465,-5850.0,0.00011,2]
[336008955,1724665833475,-320.02,0.00011,2]
[336008956,1724665833485,-1423.00946584,0.00011,2]
[336008972,1724665838177,-197.53097559,0.00010026,2]
[336008973,1724665838186,-4002.07,0.000106,2]
[336008974,1724665838196,-155.5628945,0.00010862,2]
[336008975,1724665838206,-520.36219453,0.00010862,2]
[336008976,1724665838216,-1045.66061084,0.00010886,2]
[336008977,1724665838226,-7380.15965338,0.00011,2]
[336008978,1724665838237,-16792.55808578,0.00011,2]
[336008979,1724665838249,-467.14661128,0.00011,2]
[336008980,1724665838260,-15073.07401685,0.00011,2]
[336008981,1724665838289,-8946.73932079,0.00011,2]
[336008982,1724665838349,-398.42615512,0.00011,2]
[336008983,1724665838361,-7739.30759825,0.00011,2]
[336008984,1724665838372,-999.15599993,0.00011,2]
[336009011,1724665840352,-223.51,0.00010959,2]
[336009012,1724665840361,-547.634,0.00011,2]
[336009013,1724665840410,-7104.61058235,0.00011,2]
[336009014,1724665840421,-22512.11144,0.00011,2]
[336009015,1724665840432,-6367.9,0.00011,2]
[336009016,1724665840467,-477.97858448,0.00011,2]
[336009017,1724665840479,-137759.1209317,0.00011,2]
[336009018,1724665840491,-72502.99783757,0.00011,2]
[336009019,1724665840500,-2305.99053416,0.00011,2]
[336009020,1724665840509,-1206.0,0.00011,2]
[336009021,1724665840518,-13454.0,0.00011,2]
[336009022,1724665840528,-150.751,0.00011,2]
[336009023,1724665840537,-1674.0,0.00011,2]
[336009024,1724665840546,-163.16,0.00011,2]
[336009025,1724665840555,-297.134,0.00011,2]
[336009026,1724665840564,-1077.0,0.00011,2]
[336009027,1724665840574,-525.65213034,0.00011,2]
[336009028,1724665840583,-2409.35039092,0.00011,2]
[336009029,1724665840592,-2000.0,0.00011,2]
[336009030,1724665840602,-500.0,0.00011,2]
[336009031,1724665840611,-32817.39379123,0.00011,2]
[336009032,1724665840638,-3621.02882917,0.00011,2]
[336009033,1724665840659,-155.0,0.00010862,2]
[336009034,1724665840669,-166544.23160068,0.00011,2]
[336009035,1724665840678,-923160.60633387,0.00011,2]
[336009036,1724665840688,-3852093.2055368,0.00011,2]
[336009037,1724665840697,-1800.0,0.00011,2]
[336009038,1724665840706,-1052.56443526,0.00011,2]
[336009039,1724665840715,-1023507.65974909,0.00011,2]
[336009150,1724665843234,-3319.35074978,0.00011,2]
[336009151,1724665843293,-174709.70990212,0.00011,2]
[336009152,1724665843422,-133297.8945756,0.00011,2]
[336009153,1724665843516,-1270.0,0.00011,2]
[336009166,1724665843817,3755.78175824,0.0001,2]
[336009205,1724665846174,-150.0,0.00011,2]
[336009206,1724665846184,-148.395,0.00011,2]
[336009207,1724665846259,-449.64873275,0.00011,2]
[336009208,1724665846315,-680.25,0.00011,2]
[336009209,1724665846409,-3176.0579,0.00011,2]
[336009210,1724665846420,-680.65000001,0.00011,2]
[336009211,1724665846432,-10879.99999964,0.00011,2]
[336009472,1724665874636,500.0,9.164e-05,2]
[336009473,1724665880343,213.0,9.86e-05,2]
[336009474,1724665880719,213.0,9.67e-05,2]
[336009475,1724665881751,213.0,9.47e-05,2]
[336009476,1724665882446,213.0,9.27e-05,2]
[336009480,1724666078210,465.65,8.219e-05,2]
[336009481,1724666230953,182.04,9.969e-05,2]
[336009482,1724666407843,-35982.53571996,0.000105,10]
[336009483,1724666440155,1000.0,9.97e-05,2]
[336009484,1724666521282,200.0,9.97e-05,2]
[336009485,1724666521641,200.0,9.97e-05,2]
[336009486,1724666521978,200.0,9.97e-05,2]
[336009487,1724666523209,200.0,9.97e-05,2]
[336009488,1724666523472,251.0,9.97e-05,2]
[336009489,1724666562730,442.36,8.219e-05,2]
[336009490,1724666703011,397516.5184581,0.0001,2]
[336009491,1724666728314,182.04,9.937e-05,2]
[336009492,1724666749969,3618.23,9.929e-05,2]
[336009493,1724666784297,265.5949628,0.00010009,2]
[336009494,1724666837388,153.61,9.934e-05,2]
[336009495,1724666886748,155.0,0.00010009,2]
[336009496,1724666918993,891.63165293,0.00010009,2]
[336009497,1724666930649,200.0,9.925e-05,2]
[336009498,1724666946658,1286.06670081,0.00010009,2]
[336009502,1724667008923,161.98002724,0.0001,7]
[336009514,1724667032397,-213.0,0.0001006,2]
[336009516,1724667032407,-213.0,0.0001025,2]
[336009518,1724667032418,-149.10458265,0.0001045,2]
[336009519,1724667032472,-63.89541735,0.0001045,2]
[336009520,1724667032482,-442.36,0.00010474,2]
[336009521,1724667032492,-412.62958265,0.00010566,2]
[336009522,1724667032610,-1327.09814965,0.00010566,2]
[336009523,1724667032622,-213.0,0.0001065,2]
[336009524,1724667032632,-150.0,0.00010799,2]
[336009525,1724667032642,-300.0,0.00010799,2]
[336009526,1724667032652,-4476.003,0.000108,2]
[336009527,1724667032662,-633.97047201,0.000108,2]
[336009528,1724667032672,-778.593,0.000108,2]
[336009529,1724667032682,-384.163,0.000108,2]
[336009531,1724667032692,-1000.0,0.000108,2]
[336009532,1724667032701,-500.0,0.000108,2]
[336009534,1724667032711,-1008.65,0.000108,2]
[336009536,1724667032721,-426.79,0.000108,2]
[336009538,1724667032730,-207.96,0.000108,2]
[336009539,1724667032740,-150.0,0.000108,2]
[336009541,1724667032750,-402.00143719,0.000108,2]
[336009543,1724667032759,-213.0,0.0001084,2]
[336009545,1724667032768,-6437.03,0.0001084,2]
[336009546,1724667032778,-8490.22,0.0001084,2]
[336009548,1724667032787,-499.99,0.0001084,2]
[336009550,1724667032797,-500.0,0.00010849,2]
[336009552,1724667032806,-885.9,0.00010849,2]
[336009553,1724667032816,-2388.81570417,0.00010852,2]
[336009555,1724667032825,-500.0,0.00010858,2]
[336009557,1724667032835,-155.0,0.00010861,2]
[336009558,1724667032845,-2112.26107616,0.00010861,2]
[336009559,1724667032854,-729.56564802,0.00010862,2]
[336009560,1724667032864,-500.0,0.00010867,2]
[336009561,1724667032875,-500.0,0.00010876,2]
[336009562,1724667032884,-464.6238,0.00010877,2]
[336009563,1724667032894,-500.0,0.00010885,2]
[336009564,1724667032904,-530.92137672,0.00010888,2]
[336009565,1724667032913,-420.6670051,0.00010888,2]
[336009566,1724667032922,-268.54743942,0.00010888,2]
[336009567,1724667032932,-203.13728804,0.0001089,2]
[336009568,1724667032941,-456.35499354,0.0001089,2]
[336009569,1724667032951,-164.47323518,0.0001089,2]
[336009570,1724667032960,-529.31576591,0.0001089,2]
[336009571,1724667032970,-500.0,0.00010893,2]
[336009572,1724667032979,-1897.0,0.00010897,2]
[336009573,1724667032989,-150.0,0.00010897,2]
[336009574,1724667032998,-552.0,0.00010897,2]
[336009575,1724667033008,-248.0,0.00010897,2]
[336009576,1724667033017,-3321.0,0.00010897,2]
[336009577,1724667033026,-1154.0,0.00010897,2]
[336009578,1724667033036,-764.0,0.00010897,2]
[336009579,1724667033046,-606.4471,0.000109,2]
[336009580,1724667033056,-545.5327,0.000109,2]
[336009581,1724667033066,-9664.7802,0.000109,2]
[336009582,1724667033075,-934.4656,0.000109,2]
[336009583,1724667033085,-1850.1656,0.000109,2]
[336009584,1724667033094,-2500.0,0.000109,2]
[336009585,1724667033104,-3900.7643,0.000109,2]
[336009586,1724667033114,-4222.8545,0.000109,2]
[336009587,1724667033125,-531.62,0.000109,2]
[336009588,1724667033135,-150.0,0.000109,2]
[336009589,1724667033145,-154.74,0.000109,2]
[336009590,1724667033154,-150.0,0.000109,2]
[336009591,1724667033164,-453.1164,0.000109,2]
[336009592,1724667033174,-5844.0,0.00010901,2]
[336009593,1724667033183,-3727.0,0.00010901,2]
[336009594,1724667033193,-289.0,0.00010901,2]
[336009595,1724667033202,-1204.0,0.00010901,2]
[336009596,1724667033212,-13454.0,0.00010901,2]
[336009597,1724667033222,-500.0,0.00010902,2]
[336009598,1724667033231,-500.0,0.00010911,2]
[336009599,1724667033241,-500.0,0.00010912,2]
[336009600,1724667033250,-500.0,0.0001092,2]
[336009601,1724667033260,-500.0,0.00010929,2]
[336009602,1724667033269,-500.0,0.00010937,2]
[336009603,1724667033279,-500.0,0.00010946,2]
[336009604,1724667033288,-298.82691546,0.00010949,2]
[336009605,1724667033299,-500.0,0.00010955,2]
[336009606,1724667033308,-171.83,0.00010959,2]
[336009607,1724667033317,-331.36,0.00010959,2]
[336009608,1724667033327,-276.13,0.00010959,2]
[336009609,1724667033337,-230.11,0.00010959,2]
[336009610,1724667033350,-191.76,0.00010959,2]
[336009611,1724667033360,-159.8,0.00010959,2]
[336009612,1724667033370,-2000.0,0.00010959,2]
[336009613,1724667033379,-799.03,0.00010959,2]
[336009614,1724667033388,-164.43,0.00010959,2]
[336009615,1724667033398,-500.0,0.00010964,2]
[336009616,1724667033409,-500.0,0.00010973,2]
[336009617,1724667033419,-199.98850339,0.00010973,2]
[336009618,1724667033430,-500.0,0.00010973,2]
[336009619,1724667033440,-155.0,0.00010979,2]
[336009620,1724667033450,-500.0,0.00010981,2]
[336009621,1724667033459,-161.571,0.00010985,2]
[336009622,1724667033469,-500.0,0.0001099,2]
[336009623,1724667033479,-191.19199647,0.00010997,2]
[336009624,1724667033488,-500.0,0.00010999,2]
[336009625,1724667033498,-251.25545763,0.00010999,2]
[336009626,1724667033508,-411.47229295,0.00010999,2]
[336009627,1724667033517,-152894.58695917,0.00011,2]
[336009628,1724667033527,-1259.0,0.00011,2]
[336009629,1724667033537,-623.0,0.00011,2]
[336009630,1724667033546,-1138.0,0.00011,2]
[336009631,1724667033555,-810.0,0.00011,2]
[336009632,1724667033564,-447.0,0.00011,2]
[336009633,1724667033574,-556.0,0.00011,2]
[336009634,1724667033584,-30958.0,0.00011,2]
[336009635,1724667033593,-255803.1057374,0.00011,2]
[336009651,1724667038611,-520.36219453,0.00010799,2]
[336009652,1724667038620,-11983.95088141,0.00011,2]
[336009653,1724667038640,-64070.0,0.00011,2]
[336009654,1724667038651,-9011.29504231,0.00011,2]
[336009655,1724667038681,-4018.47852097,0.00011,2]
[336009656,1724667038692,-1851.28133172,0.00011,2]
[336009657,1724667038706,-17230.93025997,0.00011,2]
[336009658,1724667038717,-122607.90377946,0.00011,2]
[336009659,1724667038740,-1025.79421617,0.00011,2]
[336009661,1724667038819,-30090.03445858,0.00011,2]
[336009685,1724667040413,-1077.0,0.00010901,2]
[336009687,1724667040422,-148437.38583248,0.00011,2]
[336009690,1724667040435,-976.22792937,0.00011,2]
[336009692,1724667040447,-3733.35497294,0.00011,2]
[336009693,1724667040582,-3838.14,0.00011,2]
[336009694,1724667040781,-370.7281955,0.00011,2]
[336009695,1724667040794,-379.9422459,0.00011,2]
[336009704,1724667044031,-3567.69982341,0.00011,2]
[336009705,1724667044118,-7241.26417959,0.000109,2]
[336009706,1724667044128,-56696.73582041,0.00011,2]
[336009707,1724667044140,-191916.04104549,0.00011,2]
[336009711,1724667046385,-119989.0344088,0.00011,2]
[336009825,1724667078102,398.12,8.627e-05,2]
[336009826,1724667408027,1050.0,0.0001,2]
[336009827,1724667476794,155.0,0.00010009,2]
[336009828,1724667648801,266.72277394,0.00010009,2]
[336009829,1724667658991,378.21,8.219e-05,2]
[336009830,1724667750557,1177.81213549,9.962e-05,2]
[336009831,1724667761591,192.33709982,9.962e-05,2]
[336009832,1724667766504,512.72019683,9.962e-05,2]
[336009833,1724667768536,155.0,9.962e-05,2]
[336009834,1724667777743,328.2488375,0.0001,2]
[336009835,1724667792945,500.0,9.164e-05,2]
[336009836,1724667834642,332.79,9.976e-05,2]
[336009838,1724667880421,182.05,9.952e-05,2]
[336009839,1724667915422,265.5949628,0.00010009,2]
[336009842,1724667956395,500.0,9.164e-05,2]
[336009843,1724667962604,500.0,9.164e-05,2]
[336009844,1724667967180,181.5,9.931e-05,2]
[336009845,1724667986829,500.0,9.164e-05,2]
[336009846,1724668048892,500.0,9.164e-05,2]
[336009847,1724668073021,23900.0,9.914e-05,2]
[336009848,1724668119637,500.0,9.923e-05,2]
[336009856,1724668154593,402.95,8.219e-05,2]
[336009874,1724668195986,206.06128228,9.962e-05,2]
[336009875,1724668197998,250.0,9.916e-05,2]
[336009876,1724668199754,1258.87903905,9.962e-05,2]
[336009881,1724668206802,155.11927323,9.962e-05,2]
[336009882,1724668209341,949.8028791,9.962e-05,2]
[336009883,1724668209603,500.0,9.164e-05,2]
[336009884,1724668224536,172.77,9.925e-05,2]
[336009899,1724668231600,-276.71537361,0.00010026,2]
[336009900,1724668231611,-1000.0,0.00010042,2]
[336009901,1724668231848,-327.18,0.00010049,2]
[336009902,1724668231859,-439.33000716,0.000101,2]
[336009903,1724668231869,-710.0889,0.00010377,2]
[336009904,1724668231879,-1598.79567782,0.0001045,2]
[336009905,1724668231890,-719.4241955,0.0001045,2]
[336009906,1724668231902,-365.35210606,0.0001045,2]
[336009907,1724668231919,-2475.883476,0.0001045,2]
[336009908,1724668231936,-4840.54454462,0.0001045,2]
[336009909,1724668231946,-203.13728804,0.00010471,2]
[336009910,1724668231955,-402.95,0.00010471,2]
[336009911,1724668231964,-27849.97720445,0.0001078,2]
[336009912,1724668231974,-256.77891649,0.000108,2]
[336009913,1724668231983,-520.36219453,0.00010852,2]
[336009914,1724668231993,-3752.98,0.0001089,2]
[336009915,1724668232002,-623.0,0.00010896,2]
[336009916,1724668232011,-3729.0,0.00010896,2]
[336009917,1724668232021,-247.1341,0.00010897,2]
[336009918,1724668232031,-658.0173,0.00010897,2]
[336009919,1724668232040,-150.0,0.00010897,2]
[336009920,1724668232049,-3149.77898991,0.00010897,2]
[336009921,1724668232061,-663.27101009,0.00010897,2]
[336009922,1724668232071,-3809.85,0.00010898,2]
[336009923,1724668232080,-763.7988,0.00010898,2]
[336009924,1724668232089,-2849.1645,0.00010898,2]
[336009925,1724668232098,-2615.2223,0.00010898,2]
[336009926,1724668232107,-3772.64,0.00010899,2]
[336009927,1724668232117,-499.99,0.00010899,2]
[336009928,1724668232127,-4030.30839818,0.00010899,2]
[336009929,1724668232137,-4030.30839814,0.00010899,2]
[336009930,1724668232146,-4030.30839814,0.00010899,2]
[336009931,1724668232155,-4030.30839814,0.00010899,2]
[336009932,1724668232164,-4030.30839814,0.00010899,2]
[336009933,1724668232173,-4030.30839814,0.00010899,2]
[336009934,1724668232183,-4030.30839814,0.00010899,2]
[336009935,1724668232192,-4030.30839814,0.00010899,2]
[336009936,1724668232201,-3753.94,0.00010899,2]
[336009937,1724668232210,-4030.30839814,0.000109,2]
[336009938,1724668232220,-13227.346,0.000109,2]
[336009939,1724668232229,-1636.9819,0.000109,2]
[336009940,1724668232238,-2046.5269,0.000109,2]
[336009941,1724668232248,-1000.0,0.000109,2]
[336009942,1724668232257,-4492.3785,0.000109,2]
[336009943,1724668232267,-12207.5368,0.000109,2]
[336009944,1724668232277,-4030.30839814,0.000109,2]
[336009945,1724668232286,-325.44123532,0.000109,2]
[336009946,1724668232295,-1879.561833,0.000109,2]
[336009947,1724668232304,-674.15852097,0.000109,2]
[336009948,1724668232313,-500.0,0.00010912,2]
[336009949,1724668232323,-155.72,0.00010959,2]
[336009950,1724668232332,-617.3,0.00010959,2]
[336009951,1724668232341,-207.07,0.00010959,2]
[336009952,1724668232351,-207.07,0.00010959,2]
[336009953,1724668232360,-828.32,0.00010959,2]
[336009954,1724668232369,-250.0,0.00010959,2]
[336009955,1724668232378,-547.39285044,0.00010979,2]
[336009956,1724668232388,-523.5801868,0.00010989,2]
[336009957,1724668232397,-160.922,0.00010991,2]
[336009958,1724668232406,-304.23573553,0.00010993,2]
[336009959,1724668232416,-177.81575934,0.00010997,2]
[336009960,1724668232426,-500.0,0.00010999,2]
[336009961,1724668232434,-6575.11796014,0.00010999,2]
[336009962,1724668232452,-4612.82411465,0.00010999,2]
[336009963,1724668232467,-3125.27043744,0.00010999,2]
[336009964,1724668232479,-11862.57540421,0.00010999,2]
[336009965,1724668232488,-1897.0,0.00011,2]
[336009966,1724668232497,-552.0,0.00011,2]
[336009967,1724668232507,-248.0,0.00011,2]
[336009968,1724668232516,-1153.0,0.00011,2]
[336009969,1724668232526,-3315.0,0.00011,2]
[336009970,1724668232536,-764.0,0.00011,2]
[336009971,1724668232545,-1077.0,0.00011,2]
[336009972,1724668232555,-1544.0,0.00011,2]
[336009973,1724668232564,-1923.0,0.00011,2]
[336009974,1724668232573,-1674.0,0.00011,2]
[336009975,1724668232582,-289.0,0.00011,2]
[336009976,1724668232592,-1259.0,0.00011,2]
[336009977,1724668232602,-5850.0,0.00011,2]
[336009978,1724668232611,-500.0,0.00011,2]
[336009979,1724668232620,-500.0,0.00011,2]
[336009980,1724668232630,-500.0,0.00011,2]
[336009981,1724668232639,-500.0,0.00011,2]
[336009982,1724668232648,-500.0,0.00011,2]
[336009983,1724668232658,-500.0,0.00011,2]
[336009984,1724668232667,-501.24222797,0.00011,2]
[336009985,1724668232677,-274016.30419064,0.00011,2]
[336009986,1724668232702,-155.16187322,0.00010097,2]
[336009987,1724668232712,-41107.0827178,0.00011,2]
[336009991,1724668237623,-4471.0124334,0.0001045,2]
[336009992,1724668237632,-1206.0,0.00010896,2]
[336009993,1724668237642,-155.0,0.00010979,2]
[336009994,1724668237652,-265.5949628,0.00010999,2]
[336009995,1724668237662,-97884.59260384,0.00011,2]
[336009996,1724668237674,-19217.7,0.00011,2]
[336009997,1724668237685,-6084.77401869,0.00011,2]
[336009998,1724668237697,-12608.96321469,0.00011,2]
[336009999,1724668237708,-1356.00596654,0.00011,2]
[336010000,1724668237743,-1600.0,0.00011,2]
[336010001,1724668237754,-281.70266337,0.00011,2]
[336010002,1724668237770,-2069.02010844,0.00011,2]
[336010003,1724668237783,-534.02114835,0.00011,2]
[336010004,1724668237845,-103493.71901806,0.00011,2]
[336010008,1724668237987,-976.96776414,0.00011,2]
[336010010,1724668237998,-2864.18590087,0.00011,2]
[336010013,1724668238018,-123925.22455223,0.00011,2]
[336010015,1724668238030,-3742.70217563,0.00011,2]
[336010043,1724668239633,-203.13728804,0.00010097,2]
[336010044,1724668239643,-1129.54289652,0.00010896,2]
[336010045,1724668239743,-796.50262584,0.00010896,2]
[336010046,1724668239948,-490.4237165,0.00010896,2]
[336010061,1724668245731,-1259.82915569,0.00010896,2]
[336010062,1724668253856,500.0,9.164e-05,2]
[336010063,1724668254688,500.0,9.164e-05,2]
[336010064,1724668254839,500.0,9.164e-05,2]
[336010065,1724668276437,500.0,9.164e-05,2]
[336010066,1724668301729,500.0,9.164e-05,2]
[336010067,1724668344539,500.0,8.22e-05,2]
[336010068,1724668368586,500.0,9.164e-05,2]
[336010069,1724668372583,500.0,9.164e-05,2]
[336010070,1724668383580,600.0,9.164e-05,2]
[336010071,1724668447158,500.0,8.22e-05,2]
[336010072,1724668464413,500.0,9.164e-05,2]
[336010073,1724668467231,500.0,8.22e-05,2]
[336010074,1724668487087,600.0,8.22e-05,2]
[336010075,1724668488741,600.0,9.59e-05,2]
[336010076,1724668488950,272.26,9.947e-05,2]
[336010077,1724668498917,700.0,8.22e-05,2]
[336010078,1724668500258,700.0,9.59e-05,2]
[336010079,1724668640577,23900.0,9.928e-05,2]
[336010080,1724668676731,471.73,8.219e-05,2]
[336010081,1724668774392,800.0,0.0001,3]
[336010082,1724668795381,207.021857,9.962e-05,2]
[336010083,1724668797708,299.5350814,0.0001,2]
[336010084,1724668799348,413.39640966,0.0001,2]
[336010085,1724668803032,151.47605466,8.219e-05,2]
[336010086,1724668804376,372.56935512,9.962e-05,2]
[336010087,1724668816037,155.0,9.962e-05,2]
[336010092,1724668827875,529.035374,9.986e-05,2]
[336010102,1724668995420,261.74,9.79e-05,2]
[336010113,1724669007875,401.85,9.793e-05,2]
[336010114,1724669083202,192.96,9.824e-05,2]
[336010157,1724669140157,520.36219453,0.00010009,2]
[336010210,1724669173419,1000.0,9.86e-05,2]
[336010211,1724669176924,1527.65391618,9.997e-05,2]
[336010212,1724669189561,567.54,8.219e-05,2]
[336010213,1724669210450,1050.0,0.0001,2]
[336010244,1724669238750,154.02485016,9.888e-05,2]
[336010245,1724669241533,265.5949628,0.00010009,2]
[336010246,1724669251931,26180.33586677,0.00010009,2]
[336010247,1724669271132,1531.6575646,0.0001,2]
[336010254,1724669297303,3055.30783236,9.926e-05,2]
[336010255,1724669305570,402.81065004,0.00010009,2]